fUST/lending_fUST_20241105
["ID","MTS","AMOUNT","RATE_DAILY","PERIOD"]
[341320103,1730786850344,-156.0,0.00033972,2]
[341320104,1730786850367,-1423.53,0.00033972,120]
[341320105,1730786850393,-503.94252113,0.00033972,3]
[341320106,1730786852130,-172.01623834,0.00033972,3]
[341320184,1730787032281,-500.0,0.00030136,3]
[341320187,1730787032291,-166.666666,0.000302,2]
[341320190,1730787032301,-500.0,0.00030406,3]
[341320193,1730787032310,-527.51093532,0.00030406,3]
[341320196,1730787032319,-511.17786956,0.00030406,3]
[341320199,1730787032329,-500.0,0.00030406,3]
[341320203,1730787032339,-511.97284467,0.00030406,3]
[341320206,1730787032349,-510.00780617,0.00030406,3]
[341320209,1730787032358,-575.9378268,0.00030406,3]
[341320212,1730787032367,-519.91598028,0.00030406,3]
[341320214,1730787032377,-515.84649766,0.00030406,3]
[341320216,1730787032387,-578.02083808,0.00030406,3]
[341320218,1730787032396,-537.55695207,0.00030409,3]
[341320221,1730787032405,-538.59401326,0.00030409,3]
[341320222,1730787032417,-448.19952081,0.00030409,3]
[341320224,1730787032426,-521.20100513,0.00030409,3]
[341320226,1730787032435,-512.01958691,0.00030409,3]
[341320228,1730787032445,-514.27045791,0.00030409,3]
[341320230,1730787032454,-514.72463269,0.00030409,3]
[341320232,1730787032463,-524.20646781,0.00030409,3]
[341320234,1730787032473,-512.83323849,0.00030409,3]
[341320236,1730787032482,-151.0,0.0003041,7]
[341320238,1730787032492,-520.52998354,0.0003041,3]
[341320240,1730787032501,-151.0,0.00030958,7]
[341320242,1730787032510,-671.06,0.00031231,3]
[341320244,1730787032520,-201.76616,0.00031496,7]
[341320246,1730787032529,-671.06,0.00031505,3]
[341320248,1730787032539,-671.06,0.00031779,3]
[341320250,1730787032549,-671.06,0.00032053,3]
[341320252,1730787032558,-153.0,0.00032081,2]
[341320254,1730787032567,-153.0,0.00032081,2]
[341320256,1730787032576,-153.0,0.00032091,2]
[341320258,1730787032586,-153.0,0.00032101,2]
[341320259,1730787032595,-153.0,0.00032101,2]
[341320262,1730787032605,-671.06,0.00032327,3]
[341320264,1730787032615,-313.0,0.0003254,2]
[341320265,1730787032624,-1000.0,0.0003254,2]
[341320267,1730787032633,-671.06,0.00032601,3]
[341320269,1730787032643,-607.54901762,0.00032613,2]
[341320271,1730787032653,-1219.81,0.000327,2]
[341320273,1730787032664,-671.06,0.00032875,3]
[341320276,1730787032673,-671.06,0.00033149,3]
[341320278,1730787032683,-671.06,0.00033423,3]
[341320279,1730787032692,-500.0,0.00033631,7]
[341320281,1730787032701,-500.0,0.00033631,7]
[341320284,1730787032711,-200.3,0.00033632,2]
[341320286,1730787032721,-400.0,0.00033632,2]
[341320288,1730787032730,-400.0,0.00033632,2]
[341320290,1730787032739,-444.0,0.00033632,2]
[341320292,1730787032749,-7564.03941768,0.00033632,2]
[341320294,1730787032761,-1680.22596734,0.00033632,2]
[341320296,1730787032770,-671.06,0.00033697,3]
[341320298,1730787032779,-460.24268787,0.00033872,2]
[341320300,1730787032790,-61.03037904,0.00033872,2]
[341320302,1730787032799,-671.06,0.00033971,3]
[341320304,1730787032808,-0.25124053,0.00033972,3]
[341320306,1730787032817,-160.07832956,0.00033972,3]
[341320308,1730787032829,-412.60757393,0.00033972,3]
[341320310,1730787032840,-139.04409651,0.00033972,3]
[341320312,1730787032849,-271.54690827,0.00033972,3]
[341320453,1730787038508,-523.19437683,0.00030406,3]
[341320454,1730787038519,-508.28517542,0.00030406,3]
[341320455,1730787038528,-1000.0,0.0003249,2]
[341320456,1730787038537,-168.18267704,0.00033971,7]
[341320457,1730787038547,-228.45309173,0.00033972,3]
[341320458,1730787038557,-868.98,0.00033972,3]
[341320459,1730787038567,-1364.22,0.00033972,120]
[341320460,1730787038576,-1000.0,0.00034,2]
[341320461,1730787038586,-1000.0,0.00034,2]
[341320462,1730787038596,-742.59834547,0.00034,2]
[341320463,1730787038715,-287.31195453,0.00034,2]
[341320464,1730787038725,-1000.0,0.00034,2]
[341320465,1730787038734,-1000.0,0.00034,2]
[341320466,1730787038744,-583.53,0.00034245,3]
[341320467,1730787038753,-493.76122294,0.00034245,3]
[341320478,1730787040417,-517.29943002,0.00030409,3]
[341320479,1730787040427,-177.29877706,0.00034245,3]
[341320480,1730787040436,-676.21,0.00034246,3]
[341320481,1730787040445,-711.73,0.00034246,3]
[341320482,1730787040454,-311.78901096,0.00034246,3]
[341320483,1730787040463,-868.98,0.00034246,3]
[341320484,1730787040473,-188.511405,0.00034256,2]
[341320485,1730787040483,-220.283306,0.00034256,2]
[341320486,1730787040492,-164.101046,0.00034256,2]
[341320487,1730787040501,-195.402303,0.00034256,2]
[341320488,1730787040510,-346.27007,0.00034256,2]
[341320489,1730787040520,-180.21853,0.00034256,2]
[341320490,1730787040529,-5073.06518354,0.00034396,45]
[341320491,1730787040538,-5000.0,0.00034396,44]
[341320492,1730787040547,-1000.0,0.000344,3]
[341320493,1730787040556,-200.0,0.000344,120]
[341320494,1730787040566,-2000.0,0.000345,3]
[341320495,1730787040575,-2000.0,0.000345,3]
[341320496,1730787040585,-583.53,0.00034519,3]
[341320497,1730787040595,-671.06,0.00034519,3]
[341320498,1730787040604,-500.0,0.0003452,17]
[341320499,1730787040622,-676.21,0.0003452,3]
[341320500,1730787040634,-711.73,0.0003452,3]
[341320501,1730787040644,-868.98,0.0003452,3]
[341320502,1730787040654,-503.70836535,0.00034526,5]
[341320503,1730787040663,-1000.0,0.00034599,2]
[341320504,1730787040675,-188.511405,0.00034684,2]
[341320505,1730787040686,-220.283306,0.00034684,2]
[341320506,1730787040696,-346.27007,0.00034684,2]
[341320507,1730787040706,-583.53,0.00034793,3]
[341320508,1730787040715,-671.06,0.00034793,3]
[341320509,1730787040725,-676.21,0.00034794,3]
[341320510,1730787040735,-711.73,0.00034794,3]
[341320511,1730787040745,-868.98,0.00034794,3]
[341320512,1730787040755,-7889.16704194,0.000348,48]
[341320513,1730787040766,-5000.0,0.000348,49]
[341320514,1730787040776,-5000.0,0.000348,45]
[341320515,1730787040786,-5000.0,0.000348,47]
[341320516,1730787040800,-5000.0,0.000348,51]
[341320517,1730787040810,-173.85910009,0.00034843,5]
[341320518,1730787040820,-1364.22,0.00034931,120]
[341320519,1730787040830,-155.0,0.00035,14]
[341320520,1730787040839,-150.0,0.00035,69]
[341320521,1730787040849,-336.83195956,0.00035,2]
[341320522,1730787040859,-10484.43410752,0.00035,2]
[341320523,1730787040869,-521.27306687,0.00035019,2]
[341320524,1730787040879,-583.53,0.00035067,3]
[341320525,1730787040889,-671.06,0.00035067,3]
[341320526,1730787040898,-676.21,0.00035068,3]
[341320527,1730787040908,-711.73,0.00035068,3]
[341320528,1730787040917,-868.98,0.00035068,3]
[341320529,1730787040927,-188.511405,0.00035113,2]
[341320530,1730787040937,-220.283306,0.00035113,2]
[341320531,1730787040946,-346.27007,0.00035113,2]
[341320532,1730787040955,-326.25246114,0.00035191,2]
[341320533,1730787040965,-500.0,0.00035271,5]
[341320534,1730787040975,-583.53,0.00035341,3]
[341320535,1730787040984,-671.06,0.00035341,3]
[341320536,1730787040993,-500.0,0.00035342,22]
[341320537,1730787041002,-676.21,0.00035342,3]
[341320538,1730787041011,-711.73,0.00035342,3]
[341320539,1730787041021,-868.98,0.00035342,3]
[341320540,1730787041030,-4551.09464447,0.00035531,60]
[341320541,1730787041040,-188.511405,0.00035541,2]
[341320542,1730787041049,-220.283306,0.00035541,2]
[341320543,1730787041059,-346.27007,0.00035541,2]
[341320544,1730787041068,-583.53,0.00035615,3]
[341320545,1730787041078,-671.06,0.00035615,3]
[341320546,1730787041087,-676.21,0.00035616,3]
[341320547,1730787041097,-711.73,0.00035616,3]
[341320548,1730787041106,-868.98,0.00035616,3]
[341320549,1730787041115,-665.5,0.0003588,10]
[341320550,1730787041125,-583.53,0.00035889,3]
[341320551,1730787041134,-671.06,0.00035889,3]
[341320552,1730787041144,-676.21,0.0003589,3]
[341320553,1730787041153,-711.73,0.0003589,3]
[341320554,1730787041163,-868.98,0.0003589,3]
[341320555,1730787041177,-1364.22,0.0003589,120]
[341320556,1730787041186,-188.511405,0.00035969,2]
[341320557,1730787041196,-220.283306,0.00035969,2]
[341320558,1730787041205,-346.27007,0.00035969,2]
[341320559,1730787041215,-195.402303,0.00035969,2]
[341320560,1730787041224,-583.53,0.00036163,3]
[341320561,1730787041233,-671.06,0.00036163,3]
[341320562,1730787041243,-430.64445745,0.00036164,27]
[341320563,1730787041253,-676.21,0.00036164,3]
[341320564,1730787041263,-711.73,0.00036164,3]
[341320565,1730787041272,-868.98,0.00036164,3]
[341320566,1730787041282,-521.27306687,0.00036166,2]
[341320567,1730787041291,-230.71251643,0.00036255,3]
[341320568,1730787041300,-5000.0,0.00036304,30]
[341320569,1730787041309,-200.0,0.000364,120]
[341320570,1730787041318,-583.53,0.00036437,3]
[341320571,1730787041327,-671.06,0.00036437,3]
[341320572,1730787041337,-676.22437831,0.00036438,3]
[341320573,1730787041346,-711.93706518,0.00036438,3]
[341320574,1730787041356,-869.06,0.00036438,3]
[341320575,1730787041368,-666.0,0.000366,120]
[341320576,1730787041377,-475.23398013,0.00036641,5]
[341320577,1730787041386,-154.37483722,0.00036676,18]
[341320578,1730787041396,-583.53,0.00036711,3]
[341320579,1730787041405,-671.06,0.00036711,3]
[341320580,1730787041414,-1364.22,0.00036849,120]
[341320581,1730787041425,-583.53,0.00036985,3]
[341320582,1730787041435,-671.06,0.00036985,3]
[341320583,1730787041444,-5025.66203289,0.00037,120]
[341320703,1730787043976,-425.55058744,0.00030406,3]
[341320705,1730787043986,-425.84114511,0.00037,120]
[341320707,1730787043996,-1000.0,0.00037199,2]
[341320709,1730787044006,-2348.23,0.000372,30]
[341320711,1730787044015,-5386.09,0.000372,30]
[341320713,1730787044025,-3174.55,0.000372,30]
[341320715,1730787044034,-583.53,0.00037259,3]
[341320717,1730787044044,-671.06,0.00037259,3]
[341320719,1730787044054,-521.27306687,0.00037313,2]
[341320721,1730787044063,-1062.32,0.000375,30]
[341320723,1730787044072,-583.71194816,0.00037533,3]
[341320725,1730787044082,-671.1925718,0.00037533,3]
[341320727,1730787044092,-12252.64801474,0.0003762,2]
[341320729,1730787044102,-1533.9160053,0.00037659,63]
[341320732,1730787044112,-169.868,0.0003771,120]
[341320735,1730787044121,-153.0,0.00037726,30]
[341320738,1730787044130,-153.0,0.00037726,30]
[341320742,1730787044141,-153.0,0.00037726,30]
[341320745,1730787044151,-1364.22,0.00037808,120]
[341320748,1730787044160,-5204.32402341,0.00037897,62]
[341320751,1730787044171,-5053.12694584,0.00037897,64]
[341320754,1730787044181,-4786.34960478,0.00038,120]
[341320757,1730787044191,-37599.80884556,0.00038,5]
[341320761,1730787044203,-116243.35752359,0.00038,5]
[341320763,1730787044213,-154.89771817,0.00038,31]
[341320766,1730787044222,-150.0,0.00038,2]
[341320769,1730787044231,-501.60871891,0.00038028,2]
[341320770,1730787044241,-150.112233,0.000383,16]
[341320772,1730787044250,-500.0,0.00038356,2]
[341320774,1730787044259,-200.0,0.000384,120]
[341320776,1730787044268,-157.459301,0.000384,18]
[341320778,1730787044277,-521.27306687,0.00038459,2]
[341320780,1730787044287,-170.32692222,0.00038473,5]
[341320782,1730787044296,-502.57744956,0.00038473,5]
[341320784,1730787044305,-502.43321708,0.00038473,5]
[341320786,1730787044314,-5000.0,0.0003856,30]
[341320788,1730787044323,-1364.22,0.00038767,120]
[341320790,1730787044332,-550.0,0.00038799,2]
[341320793,1730787044342,-550.0,0.00038799,2]
[341320795,1730787044351,-550.0,0.00038799,2]
[341320797,1730787044360,-550.0,0.00038799,2]
[341320799,1730787044370,-550.0,0.00038799,2]
[341320801,1730787044380,-550.0,0.00038799,2]
[341320803,1730787044389,-550.0,0.00038799,2]
[341320805,1730787044399,-550.0,0.00038799,2]
[341320807,1730787044410,-550.0,0.00038799,2]
[341320809,1730787044420,-550.0,0.00038799,2]
[341320811,1730787044431,-104884.21599264,0.000388,120]
[341320813,1730787044440,-2348.23,0.000388,30]
[341320815,1730787044449,-5386.09,0.000388,30]
[341320817,1730787044459,-3174.55,0.000388,30]
[341320819,1730787044469,-660.79,0.000388,30]
[341320821,1730787044479,-1000.1,0.00039,120]
[341320823,1730787044488,-300000.0,0.00039,30]
[341320825,1730787044498,-1062.32,0.00039,30]
[341320827,1730787044508,-1000.1,0.000392,120]
[341320829,1730787044517,-48667.01121963,0.00039303,2]
[341320830,1730787044533,-1000.1,0.000394,120]
[341320831,1730787044542,-1784.44330086,0.000395,60]
[341321005,1730787046367,-18364.77006949,0.000395,60]
[341321007,1730787046378,-157.15,0.000395,31]
[341321018,1730787046481,-157.15,0.000395,31]
[341321021,1730787046491,-157.15,0.000395,31]
[341321023,1730787046501,-157.15,0.000395,31]
[341321025,1730787046511,-157.15,0.000395,31]
[341321027,1730787046521,-1091.05117051,0.00039501,2]
[341321346,1730787049876,-48118.93364179,0.00039501,2]
[341321420,1730787678572,161.524876,0.00013973,2]
[341321432,1730787941128,-1101.724,0.00026739,2]
[341321433,1730787941149,-529.0,0.00026739,2]
[341321434,1730787941170,-1316.751,0.00026739,2]
[341321435,1730787941192,-177.8965,0.0003,2]
[341321436,1730787941213,-177.8965,0.0003,2]
[341321437,1730787941234,-500.0,0.00030406,3]
[341321438,1730787941255,-500.0,0.00030406,3]
[341321439,1730787941277,-187.24103609,0.00030406,26]
[341321440,1730787941297,-500.0,0.00030406,3]
[341321441,1730787941319,-500.0,0.00030406,3]
[341321442,1730787941339,-512.18699257,0.00030406,3]
[341321443,1730787941362,-253.56063655,0.00030407,2]
[341321444,1730787941382,-500.0,0.00030408,3]
[341321445,1730787941407,-2062.52,0.00030408,3]
[341321446,1730787941428,-500.0,0.00030408,3]
[341321447,1730787941449,-500.0,0.00030408,3]
[341321448,1730787941471,-500.0,0.00030408,3]
[341321449,1730787941494,-500.0,0.00030408,3]
[341321450,1730787941514,-500.0,0.00030408,3]
[341321451,1730787941620,-500.0,0.00030408,3]
[341321452,1730787941664,-500.0,0.00030408,3]
[341321453,1730787941687,-500.0,0.00030408,3]
[341321454,1730787941709,-628.84,0.00030408,3]
[341321455,1730787941729,-500.0,0.00030408,3]
[341321456,1730787941752,-500.0,0.00030408,3]
[341321457,1730787941773,-500.0,0.00030408,3]
[341321458,1730787941797,-500.0,0.00030408,3]
[341321459,1730787941817,-363.74035146,0.00030408,3]
[341321460,1730787941838,-514.29407551,0.00030409,3]
[341321461,1730787941859,-368.79941261,0.00030409,3]
[341321462,1730787941879,-500.0,0.00030409,3]
[341321463,1730787941900,-505.16890856,0.00030409,3]
[341321464,1730787941919,-515.22032252,0.00030409,3]
[341321465,1730787941941,-582.44739528,0.00030409,3]
[341321466,1730787941962,-521.16735338,0.00030409,3]
[341321467,1730787941982,-505.45444374,0.00030409,3]
[341321468,1730787942003,-511.86101274,0.00030409,3]
[341321469,1730787942023,-559.51042987,0.00030409,3]
[341321470,1730787942044,-508.79772968,0.00030409,3]
[341321471,1730787942067,-508.59590552,0.00030409,3]
[341321472,1730787942089,-505.80880831,0.00030409,3]
[341321473,1730787942111,-500.0,0.00030409,3]
[341321474,1730787942132,-500.0,0.00030409,3]
[341321475,1730787942153,-504.11498477,0.00030409,3]
[341321476,1730787942173,-500.0,0.00030409,3]
[341321477,1730787942194,-512.76191685,0.00030409,3]
[341321478,1730787942214,-503.52573992,0.00030409,3]
[341321479,1730787942235,-504.75511089,0.00030409,3]
[341321480,1730787942256,-500.0,0.00030409,3]
[341321481,1730787942277,-500.0,0.00030409,3]
[341321482,1730787942298,-508.04778814,0.00030409,3]
[341321483,1730787942318,-518.41525808,0.00030409,3]
[341321484,1730787942339,-500.0,0.00030409,3]
[341321485,1730787942361,-500.0,0.00030409,3]
[341321486,1730787942382,-525.09634533,0.00030409,3]
[341321487,1730787942404,-764.26,0.00030409,3]
[341321488,1730787942424,-1533.99,0.00030409,3]
[341321489,1730787942446,-195.47740012,0.0003058,2]
[341321490,1730787942466,-503.06386035,0.0003068,3]
[341321491,1730787942489,-500.25,0.00030682,3]
[341321492,1730787942510,-458.61364873,0.00030682,3]
[341321493,1730787942533,-500.0,0.00030682,3]
[341321494,1730787942557,-2062.52,0.00030682,3]
[341321495,1730787942578,-539.60071504,0.00030682,3]
[341321496,1730787942601,-500.0,0.00030682,3]
[341321497,1730787942622,-500.0,0.00030682,3]
[341321498,1730787942643,-509.6680388,0.00030682,3]
[341321499,1730787942666,-500.0,0.00030682,3]
[341321500,1730787942688,-500.0,0.00030682,3]
[341321501,1730787942710,-533.63364078,0.00030682,3]
[341321502,1730787942731,-500.0,0.00030682,3]
[341321503,1730787942757,-500.0,0.00030682,3]
[341321504,1730787942787,-500.0,0.00030682,3]
[341321505,1730787942817,-500.0,0.00030682,3]
[341321506,1730787942845,-628.84,0.00030682,3]
[341321507,1730787942870,-500.0,0.00030682,3]
[341321508,1730787942898,-283.48208604,0.00030682,3]
[341321509,1730787942925,-500.0,0.00030682,3]
[341321510,1730787942952,-500.0,0.00030682,3]
[341321511,1730787942981,-500.0,0.00030682,3]
[341321512,1730787943006,-500.0,0.00030682,3]
[341321513,1730787943032,-500.0,0.00030683,3]
[341321514,1730787943060,-306.34416279,0.00030683,3]
[341321515,1730787943084,-500.0,0.00030683,3]
[341321516,1730787943109,-403.36950283,0.00030683,3]
[341321517,1730787943135,-500.0,0.00030683,3]
[341321518,1730787943159,-500.0,0.00030683,3]
[341321519,1730787943185,-500.0,0.00030683,3]
[341321520,1730787943211,-764.26,0.00030683,3]
[341321521,1730787943236,-1533.99,0.00030683,3]
[341321522,1730787943261,-500.25,0.00030956,3]
[341321523,1730787943284,-500.0,0.00030956,3]
[341321524,1730787943312,-2062.52,0.00030956,3]
[341321525,1730787943336,-500.0,0.00030956,3]
[341321526,1730787943364,-500.0,0.00030956,3]
[341321527,1730787943391,-500.0,0.00030956,3]
[341321528,1730787943416,-500.0,0.00030956,3]
[341321529,1730787943443,-500.0,0.00030956,3]
[341321530,1730787943470,-500.0,0.00030956,3]
[341321531,1730787943496,-500.0,0.00030956,3]
[341321532,1730787943521,-628.84,0.00030956,3]
[341321533,1730787943548,-500.0,0.00030956,3]
[341321534,1730787943571,-500.0,0.00030956,3]
[341321535,1730787943597,-500.0,0.00030956,3]
[341321536,1730787943622,-500.0,0.00030956,3]
[341321537,1730787943648,-440.59945818,0.00030957,3]
[341321538,1730787943673,-503.94521489,0.00030957,3]
[341321539,1730787943699,-500.0,0.00030957,3]
[341321540,1730787943723,-764.26,0.00030957,3]
[341321541,1730787943750,-1533.99,0.00030957,3]
[341321542,1730787943777,-500.25,0.0003123,3]
[341321543,1730787943803,-500.0,0.0003123,3]
[341321544,1730787943831,-2062.52,0.0003123,3]
[341321545,1730787943856,-500.0,0.0003123,3]
[341321546,1730787943880,-500.0,0.0003123,3]
[341321547,1730787943904,-500.0,0.0003123,3]
[341321548,1730787943929,-500.0,0.0003123,3]
[341321549,1730787943952,-500.0,0.0003123,3]
[341321550,1730787943977,-500.0,0.0003123,3]
[341321551,1730787944001,-500.0,0.0003123,3]
[341321552,1730787944025,-628.84,0.0003123,3]
[341321553,1730787944048,-500.0,0.0003123,3]
[341321554,1730787944179,-500.0,0.0003123,3]
[341321555,1730787944204,-500.0,0.0003123,3]
[341321556,1730787944226,-500.0,0.0003123,3]
[341321557,1730787944248,-500.0,0.00031231,3]
[341321558,1730787944270,-764.26,0.00031231,3]
[341321559,1730787944293,-1533.99,0.00031231,3]
[341321560,1730787944316,-500.25,0.00031504,3]
[341321561,1730787944338,-500.0,0.00031504,3]
[341321562,1730787944363,-2062.52,0.00031504,3]
[341321563,1730787944385,-500.0,0.00031504,3]
[341321564,1730787944407,-500.0,0.00031504,3]
[341321565,1730787944429,-500.0,0.00031504,3]
[341321566,1730787944452,-500.0,0.00031504,3]
[341321567,1730787944472,-500.0,0.00031504,3]
[341321568,1730787944496,-500.0,0.00031504,3]
[341321569,1730787944519,-500.0,0.00031504,3]
[341321570,1730787944544,-628.84,0.00031504,3]
[341321571,1730787944568,-500.0,0.00031504,3]
[341321572,1730787944597,-500.0,0.00031504,3]
[341321573,1730787944620,-500.0,0.00031505,3]
[341321574,1730787944641,-764.26,0.00031505,3]
[341321575,1730787944662,-1533.99,0.00031505,3]
[341321576,1730787944685,-500.25,0.00031778,3]
[341321577,1730787944707,-500.0,0.00031778,3]
[341321578,1730787944732,-2062.52,0.00031778,3]
[341321579,1730787944753,-500.0,0.00031778,3]
[341321580,1730787944776,-500.0,0.00031778,3]
[341321581,1730787944799,-500.0,0.00031778,3]
[341321582,1730787944821,-500.0,0.00031778,3]
[341321583,1730787944844,-480.34437509,0.00031778,3]
[341321584,1730787944867,-500.0,0.00031778,3]
[341321585,1730787944889,-628.84,0.00031778,3]
[341321586,1730787944913,-500.0,0.00031778,3]
[341321587,1730787944938,-500.0,0.00031778,3]
[341321588,1730787944960,-500.0,0.00031779,3]
[341321589,1730787944982,-764.26,0.00031779,3]
[341321590,1730787945005,-1533.99,0.00031779,3]
[341321591,1730787945029,-704.62,0.00032042,10]
[341321592,1730787945052,-1206.57,0.00032042,10]
[341321593,1730787945075,-1005.47,0.00032042,10]
[341321594,1730787945098,-837.9,0.00032042,10]
[341321595,1730787945124,-500.25,0.00032052,3]
[341321596,1730787945147,-500.0,0.00032052,3]
[341321597,1730787945173,-2062.52,0.00032052,3]
[341321598,1730787945196,-500.0,0.00032052,3]
[341321599,1730787945221,-500.0,0.00032052,3]
[341321600,1730787945247,-500.0,0.00032052,3]
[341321601,1730787945271,-500.0,0.00032052,3]
[341321602,1730787945297,-500.0,0.00032052,3]
[341321603,1730787945321,-628.84,0.00032052,3]
[341321604,1730787945345,-500.0,0.00032052,3]
[341321605,1730787945371,-500.0,0.00032052,3]
[341321606,1730787945395,-500.0,0.00032053,3]
[341321607,1730787945418,-764.26,0.00032053,3]
[341321608,1730787945440,-1533.99,0.00032053,3]
[341321609,1730787945464,-195.47740007,0.00032197,2]
[341321610,1730787945489,-500.25,0.00032326,3]
[341321611,1730787945512,-500.0,0.00032326,3]
[341321612,1730787945541,-2062.52,0.00032326,3]
[341321613,1730787945565,-500.0,0.00032326,3]
[341321614,1730787945589,-500.0,0.00032326,3]
[341321615,1730787945616,-500.0,0.00032326,3]
[341321616,1730787945640,-500.0,0.00032326,3]
[341321617,1730787945665,-500.0,0.00032326,3]
[341321618,1730787945690,-628.84,0.00032326,3]
[341321619,1730787945715,-500.0,0.00032326,3]
[341321620,1730787945741,-500.0,0.00032326,3]
[341321621,1730787945765,-500.0,0.00032327,3]
[341321622,1730787945789,-764.26,0.00032327,3]
[341321623,1730787945814,-1533.99,0.00032327,3]
[341321624,1730787945838,-150.0,0.000325,12]
[341321625,1730787945865,-500.25,0.000326,3]
[341321626,1730787945889,-500.0,0.000326,3]
[341321627,1730787945918,-2062.52,0.000326,3]
[341321628,1730787945942,-500.0,0.000326,3]
[341321629,1730787945968,-500.0,0.000326,3]
[341321630,1730787945994,-500.0,0.000326,3]
[341321631,1730787946018,-500.0,0.000326,3]
[341321632,1730787946044,-500.0,0.000326,3]
[341321633,1730787946068,-628.84,0.000326,3]
[341321634,1730787946093,-527.56371676,0.000326,3]
[341321635,1730787946121,-500.0,0.000326,3]
[341321636,1730787946144,-500.0,0.00032601,3]
[341321637,1730787946167,-764.26,0.00032601,3]
[341321638,1730787946192,-1533.99,0.00032601,3]
[341321639,1730787946215,-1097.83,0.000327,2]
[341321640,1730787946240,-500.25,0.00032874,3]
[341321641,1730787946263,-500.0,0.00032874,3]
[341321642,1730787946291,-2062.52,0.00032874,3]
[341321643,1730787946314,-500.0,0.00032874,3]
[341321644,1730787946339,-500.0,0.00032874,3]
[341321645,1730787946365,-500.0,0.00032874,3]
[341321646,1730787946390,-500.0,0.00032874,3]
[341321647,1730787946415,-230.58055278,0.00032874,3]
[341321648,1730787946438,-628.84,0.00032874,3]
[341321649,1730787946465,-500.0,0.00032874,3]
[341321650,1730787946488,-500.0,0.00032875,3]
[341321651,1730787946511,-764.26,0.00032875,3]
[341321652,1730787946538,-1533.99,0.00032875,3]
[341321653,1730787946562,-190.28361809,0.00032876,3]
[341321654,1730787946584,-167.247924,0.00032877,120]
[341321655,1730787946607,-160.0,0.00033051,5]
[341321656,1730787946632,-500.25,0.00033148,3]
[341321657,1730787946654,-500.0,0.00033148,3]
[341321658,1730787946680,-2062.52,0.00033148,3]
[341321659,1730787946702,-500.0,0.00033148,3]
[341321660,1730787946724,-500.0,0.00033148,3]
[341321661,1730787946747,-500.0,0.00033148,3]
[341321662,1730787946770,-500.0,0.00033148,3]
[341321663,1730787946793,-628.84,0.00033148,3]
[341321664,1730787946819,-500.0,0.00033148,3]
[341321665,1730787946841,-500.0,0.00033149,3]
[341321666,1730787946864,-764.26,0.00033149,3]
[341321667,1730787946886,-1533.99,0.00033149,3]
[341321668,1730787946911,-500.25,0.00033422,3]
[341321669,1730787946932,-400.87263262,0.00033422,3]
[341321670,1730787947037,-2062.52,0.00033422,3]
[341321671,1730787947060,-404.94273652,0.00033422,3]
[341321672,1730787947083,-500.0,0.00033422,3]
[341321673,1730787947110,-500.0,0.00033422,3]
[341321674,1730787947131,-500.0,0.00033422,3]
[341321675,1730787947153,-628.84,0.00033422,3]
[341321676,1730787947178,-500.0,0.00033422,3]
[341321677,1730787947199,-500.0,0.00033423,3]
[341321678,1730787947221,-764.26,0.00033423,3]